{"text_format":"3","workbook":"xlsx","n_sheets":1,"sheets":["Schedule & Weight Tracker"],"not_rendered":{"charts":1,"defined_names":20},"read":"whole","date_system":"1900"}

{"sheet":"Schedule & Weight Tracker","index":0,"n_rows":47,"n_cols":36,"rows_kept":47,"merged":[[3,6,3,7],[3,15,3,16],[4,6,4,7],[4,15,4,16],[5,6,5,7],[5,15,5,16],[6,6,6,7],[6,15,6,16],[7,6,7,7],[8,6,8,7],[15,1,16,1],[15,2,16,2],[15,3,15,15],[15,16,15,26],[15,27,15,31],[15,32,15,35]]}
[null,"Infant Schedule & Weight Tracker"]
[]
[null,"Daily Averages",{"$nulls":8},"Diaper Changes",{"$nulls":8},"Weekly Weight"]
[null,"Weight",{"$nulls":4},{"$f":"AVERAGE(DailySchedule[Weight])","v":{"v":7.65,"d":"7.7"}},{"$nulls":3},{"$f":"Code4Name","v":"Wet"},{"$nulls":4},{"$f":"SUM(DailySchedule[Total6])/ColumnTotals","v":1.5}]
[null,{"$f":"Code1Name","v":"Feeding"},{"$nulls":4},{"$f":"SUM(DailySchedule[Total1])/ColumnTotals","v":4.5},{"$nulls":3},{"$f":"Code5Name","v":"Dry"},{"$nulls":4},{"$f":"SUM(DailySchedule[Total7])/ColumnTotals","v":0.5}]
[null,{"$f":"Code2Name","v":"Play"},{"$nulls":4},{"$f":"SUM(DailySchedule[Total2])/ColumnTotals","v":4.5},{"$nulls":3},{"$f":"Code6Name","v":"BM"},{"$nulls":4},{"$f":"SUM(DailySchedule[Total8])/ColumnTotals","v":2.5}]
[null,{"$f":"Code3Name","v":"Sleep"},{"$nulls":4},{"$f":"SUM(DailySchedule[Total3])/ColumnTotals","v":10.5},{"$nulls":3},"Total Changes:",{"$nulls":4},{"$f":"SUM(DailySchedule[DTotal])/ColumnTotals","v":4.5}]
[null,{"$f":"Code7Name","v":"Other 1"},{"$nulls":4},{"$f":"SUM(DailySchedule[Total4])/ColumnTotals","v":{"v":0,"d":"0.0"}}]
[null,{"$f":"Code8Name","v":"Other 2"},{"$nulls":4},{"$f":"SUM(DailySchedule[Total5])/ColumnTotals","v":{"v":0,"d":"0.0"}}]
[]
[null,"Legend"]
[null,"Activities",null,"F","Feeding",null,"P","Play",null,"S","Sleep",null,1,"Other 1",null,2,"Other 2"]
[]
[null,"Diaper Changes",null,"B","BM",null,"W","Wet",null,"D","Dry"]
[]
[null,"Date","Weight","Day",{"$nulls":12},"Night",{"$nulls":10},"Activities",{"$nulls":4},"Diaper Changes"]
[{"$nulls":3},"6a","7a","8a","9a","10a","11a","12p","1p","2p","3p","4p","5p","6p","7p","8p","9p","10p","11p","12a","1a","2a","3a","4a","5a",{"$f":"Code1","v":"F"},{"$f":"Code2","v":"P"},"S","O1","O2",{"$f":"Code4","v":"W"},{"$f":"Code5","v":"D"},{"$f":"Code6","v":"B"},"Total"]
[null,{"$f":"TODAY()","v":"2013-02-25"},7.5,"S","S","B","F","P","P","W","F","S","S","D","F","P","B","P","F","S","S","S","S","W","F","S","S",{"$f":"COUNTIF(DailySchedule[[#This Row],[Time1]:[Time24]],Code1)","v":5},{"$f":"COUNTIF(DailySchedule[[#This Row],[Time1]:[Time24]],Code2)","v":4},{"$f":"COUNTIF(DailySchedule[[#This Row],[Time1]:[Time24]],Code3)","v":10},{"$f":"COUNTIF(DailySchedule[[#This Row],[Time1]:[Time24]],Code7)","v":0},{"$f":"COUNTIF(DailySchedule[[#This Row],[Time1]:[Time24]],Code8)","v":0},{"$f":"COUNTIF(DailySchedule[[#This Row],[Time1]:[Time24]],Code4)","v":2},{"$f":"COUNTIF(DailySchedule[[#This Row],[Time1]:[Time24]],Code5)","v":1},{"$f":"COUNTIF(DailySchedule[[#This Row],[Time1]:[Time24]],Code6)","v":2},{"$f":"SUMPRODUCT( --(DailySchedule[[#This Row],[Time1]:[Time24]]=TRANSPOSE(CHOOSE({1,2,3},Code4,Code5,Code6))) )","v":5}]
[null,{"$f":"B18+1","v":"2013-02-26"},7.8,"S","W","F","S","P","B","P","P","F","S","S","B","F","P","P","S","S","S","S","B","F","S","S","S",{"$f":"COUNTIF(DailySchedule[[#This Row],[Time1]:[Time24]],Code1)","v":4},{"$f":"COUNTIF(DailySchedule[[#This Row],[Time1]:[Time24]],Code2)","v":5},{"$f":"COUNTIF(DailySchedule[[#This Row],[Time1]:[Time24]],Code3)","v":11},{"$f":"COUNTIF(DailySchedule[[#This Row],[Time1]:[Time24]],Code7)","v":0},{"$f":"COUNTIF(DailySchedule[[#This Row],[Time1]:[Time24]],Code8)","v":0},{"$f":"COUNTIF(DailySchedule[[#This Row],[Time1]:[Time24]],Code4)","v":1},{"$f":"COUNTIF(DailySchedule[[#This Row],[Time1]:[Time24]],Code5)","v":0},{"$f":"COUNTIF(DailySchedule[[#This Row],[Time1]:[Time24]],Code6)","v":3},{"$f":"SUMPRODUCT( --(DailySchedule[[#This Row],[Time1]:[Time24]]=TRANSPOSE(CHOOSE({1,2,3},Code4,Code5,Code6))) )","v":4}]
[null,{"$f":"B19+1","v":"2013-02-27"},{"$nulls":25},{"$f":"COUNTIF(DailySchedule[[#This Row],[Time1]:[Time24]],Code1)","v":0},{"$f":"COUNTIF(DailySchedule[[#This Row],[Time1]:[Time24]],Code2)","v":0},{"$f":"COUNTIF(DailySchedule[[#This Row],[Time1]:[Time24]],Code3)","v":0},{"$f":"COUNTIF(DailySchedule[[#This Row],[Time1]:[Time24]],Code7)","v":0},{"$f":"COUNTIF(DailySchedule[[#This Row],[Time1]:[Time24]],Code8)","v":0},{"$f":"COUNTIF(DailySchedule[[#This Row],[Time1]:[Time24]],Code4)","v":0},{"$f":"COUNTIF(DailySchedule[[#This Row],[Time1]:[Time24]],Code5)","v":0},{"$f":"COUNTIF(DailySchedule[[#This Row],[Time1]:[Time24]],Code6)","v":0},{"$f":"SUMPRODUCT( --(DailySchedule[[#This Row],[Time1]:[Time24]]=TRANSPOSE(CHOOSE({1,2,3},Code4,Code5,Code6))) )","v":0}]
[null,"2013-02-28",{"$nulls":25},{"$f":"COUNTIF(DailySchedule[[#This Row],[Time1]:[Time24]],Code1)","v":0},{"$f":"COUNTIF(DailySchedule[[#This Row],[Time1]:[Time24]],Code2)","v":0},{"$f":"COUNTIF(DailySchedule[[#This Row],[Time1]:[Time24]],Code3)","v":0},{"$f":"COUNTIF(DailySchedule[[#This Row],[Time1]:[Time24]],Code7)","v":0},{"$f":"COUNTIF(DailySchedule[[#This Row],[Time1]:[Time24]],Code8)","v":0},{"$f":"COUNTIF(DailySchedule[[#This Row],[Time1]:[Time24]],Code4)","v":0},{"$f":"COUNTIF(DailySchedule[[#This Row],[Time1]:[Time24]],Code5)","v":0},{"$f":"COUNTIF(DailySchedule[[#This Row],[Time1]:[Time24]],Code6)","v":0},{"$f":"SUMPRODUCT( --(DailySchedule[[#This Row],[Time1]:[Time24]]=TRANSPOSE(CHOOSE({1,2,3},Code4,Code5,Code6))) )","v":0}]
[null,"2013-03-01",{"$nulls":25},{"$f":"COUNTIF(DailySchedule[[#This Row],[Time1]:[Time24]],Code1)","v":0},{"$f":"COUNTIF(DailySchedule[[#This Row],[Time1]:[Time24]],Code2)","v":0},{"$f":"COUNTIF(DailySchedule[[#This Row],[Time1]:[Time24]],Code3)","v":0},{"$f":"COUNTIF(DailySchedule[[#This Row],[Time1]:[Time24]],Code7)","v":0},{"$f":"COUNTIF(DailySchedule[[#This Row],[Time1]:[Time24]],Code8)","v":0},{"$f":"COUNTIF(DailySchedule[[#This Row],[Time1]:[Time24]],Code4)","v":0},{"$f":"COUNTIF(DailySchedule[[#This Row],[Time1]:[Time24]],Code5)","v":0},{"$f":"COUNTIF(DailySchedule[[#This Row],[Time1]:[Time24]],Code6)","v":0},{"$f":"SUMPRODUCT( --(DailySchedule[[#This Row],[Time1]:[Time24]]=TRANSPOSE(CHOOSE({1,2,3},Code4,Code5,Code6))) )","v":0}]
[null,"2013-03-02",{"$nulls":25},{"$f":"COUNTIF(DailySchedule[[#This Row],[Time1]:[Time24]],Code1)","v":0},{"$f":"COUNTIF(DailySchedule[[#This Row],[Time1]:[Time24]],Code2)","v":0},{"$f":"COUNTIF(DailySchedule[[#This Row],[Time1]:[Time24]],Code3)","v":0},{"$f":"COUNTIF(DailySchedule[[#This Row],[Time1]:[Time24]],Code7)","v":0},{"$f":"COUNTIF(DailySchedule[[#This Row],[Time1]:[Time24]],Code8)","v":0},{"$f":"COUNTIF(DailySchedule[[#This Row],[Time1]:[Time24]],Code4)","v":0},{"$f":"COUNTIF(DailySchedule[[#This Row],[Time1]:[Time24]],Code5)","v":0},{"$f":"COUNTIF(DailySchedule[[#This Row],[Time1]:[Time24]],Code6)","v":0},{"$f":"SUMPRODUCT( --(DailySchedule[[#This Row],[Time1]:[Time24]]=TRANSPOSE(CHOOSE({1,2,3},Code4,Code5,Code6))) )","v":0}]
[null,"2013-03-03",{"$nulls":25},{"$f":"COUNTIF(DailySchedule[[#This Row],[Time1]:[Time24]],Code1)","v":0},{"$f":"COUNTIF(DailySchedule[[#This Row],[Time1]:[Time24]],Code2)","v":0},{"$f":"COUNTIF(DailySchedule[[#This Row],[Time1]:[Time24]],Code3)","v":0},{"$f":"COUNTIF(DailySchedule[[#This Row],[Time1]:[Time24]],Code7)","v":0},{"$f":"COUNTIF(DailySchedule[[#This Row],[Time1]:[Time24]],Code8)","v":0},{"$f":"COUNTIF(DailySchedule[[#This Row],[Time1]:[Time24]],Code4)","v":0},{"$f":"COUNTIF(DailySchedule[[#This Row],[Time1]:[Time24]],Code5)","v":0},{"$f":"COUNTIF(DailySchedule[[#This Row],[Time1]:[Time24]],Code6)","v":0},{"$f":"SUMPRODUCT( --(DailySchedule[[#This Row],[Time1]:[Time24]]=TRANSPOSE(CHOOSE({1,2,3},Code4,Code5,Code6))) )","v":0}]
[null,"2013-03-04",{"$nulls":25},{"$f":"COUNTIF(DailySchedule[[#This Row],[Time1]:[Time24]],Code1)","v":0},{"$f":"COUNTIF(DailySchedule[[#This Row],[Time1]:[Time24]],Code2)","v":0},{"$f":"COUNTIF(DailySchedule[[#This Row],[Time1]:[Time24]],Code3)","v":0},{"$f":"COUNTIF(DailySchedule[[#This Row],[Time1]:[Time24]],Code7)","v":0},{"$f":"COUNTIF(DailySchedule[[#This Row],[Time1]:[Time24]],Code8)","v":0},{"$f":"COUNTIF(DailySchedule[[#This Row],[Time1]:[Time24]],Code4)","v":0},{"$f":"COUNTIF(DailySchedule[[#This Row],[Time1]:[Time24]],Code5)","v":0},{"$f":"COUNTIF(DailySchedule[[#This Row],[Time1]:[Time24]],Code6)","v":0},{"$f":"SUMPRODUCT( --(DailySchedule[[#This Row],[Time1]:[Time24]]=TRANSPOSE(CHOOSE({1,2,3},Code4,Code5,Code6))) )","v":0}]
[null,"2013-03-05",{"$nulls":25},{"$f":"COUNTIF(DailySchedule[[#This Row],[Time1]:[Time24]],Code1)","v":0},{"$f":"COUNTIF(DailySchedule[[#This Row],[Time1]:[Time24]],Code2)","v":0},{"$f":"COUNTIF(DailySchedule[[#This Row],[Time1]:[Time24]],Code3)","v":0},{"$f":"COUNTIF(DailySchedule[[#This Row],[Time1]:[Time24]],Code7)","v":0},{"$f":"COUNTIF(DailySchedule[[#This Row],[Time1]:[Time24]],Code8)","v":0},{"$f":"COUNTIF(DailySchedule[[#This Row],[Time1]:[Time24]],Code4)","v":0},{"$f":"COUNTIF(DailySchedule[[#This Row],[Time1]:[Time24]],Code5)","v":0},{"$f":"COUNTIF(DailySchedule[[#This Row],[Time1]:[Time24]],Code6)","v":0},{"$f":"SUMPRODUCT( --(DailySchedule[[#This Row],[Time1]:[Time24]]=TRANSPOSE(CHOOSE({1,2,3},Code4,Code5,Code6))) )","v":0}]
[null,"2013-03-06",{"$nulls":25},{"$f":"COUNTIF(DailySchedule[[#This Row],[Time1]:[Time24]],Code1)","v":0},{"$f":"COUNTIF(DailySchedule[[#This Row],[Time1]:[Time24]],Code2)","v":0},{"$f":"COUNTIF(DailySchedule[[#This Row],[Time1]:[Time24]],Code3)","v":0},{"$f":"COUNTIF(DailySchedule[[#This Row],[Time1]:[Time24]],Code7)","v":0},{"$f":"COUNTIF(DailySchedule[[#This Row],[Time1]:[Time24]],Code8)","v":0},{"$f":"COUNTIF(DailySchedule[[#This Row],[Time1]:[Time24]],Code4)","v":0},{"$f":"COUNTIF(DailySchedule[[#This Row],[Time1]:[Time24]],Code5)","v":0},{"$f":"COUNTIF(DailySchedule[[#This Row],[Time1]:[Time24]],Code6)","v":0},{"$f":"SUMPRODUCT( --(DailySchedule[[#This Row],[Time1]:[Time24]]=TRANSPOSE(CHOOSE({1,2,3},Code4,Code5,Code6))) )","v":0}]
[null,"2013-03-07",{"$nulls":25},{"$f":"COUNTIF(DailySchedule[[#This Row],[Time1]:[Time24]],Code1)","v":0},{"$f":"COUNTIF(DailySchedule[[#This Row],[Time1]:[Time24]],Code2)","v":0},{"$f":"COUNTIF(DailySchedule[[#This Row],[Time1]:[Time24]],Code3)","v":0},{"$f":"COUNTIF(DailySchedule[[#This Row],[Time1]:[Time24]],Code7)","v":0},{"$f":"COUNTIF(DailySchedule[[#This Row],[Time1]:[Time24]],Code8)","v":0},{"$f":"COUNTIF(DailySchedule[[#This Row],[Time1]:[Time24]],Code4)","v":0},{"$f":"COUNTIF(DailySchedule[[#This Row],[Time1]:[Time24]],Code5)","v":0},{"$f":"COUNTIF(DailySchedule[[#This Row],[Time1]:[Time24]],Code6)","v":0},{"$f":"SUMPRODUCT( --(DailySchedule[[#This Row],[Time1]:[Time24]]=TRANSPOSE(CHOOSE({1,2,3},Code4,Code5,Code6))) )","v":0}]
[null,"2013-03-08",{"$nulls":25},{"$f":"COUNTIF(DailySchedule[[#This Row],[Time1]:[Time24]],Code1)","v":0},{"$f":"COUNTIF(DailySchedule[[#This Row],[Time1]:[Time24]],Code2)","v":0},{"$f":"COUNTIF(DailySchedule[[#This Row],[Time1]:[Time24]],Code3)","v":0},{"$f":"COUNTIF(DailySchedule[[#This Row],[Time1]:[Time24]],Code7)","v":0},{"$f":"COUNTIF(DailySchedule[[#This Row],[Time1]:[Time24]],Code8)","v":0},{"$f":"COUNTIF(DailySchedule[[#This Row],[Time1]:[Time24]],Code4)","v":0},{"$f":"COUNTIF(DailySchedule[[#This Row],[Time1]:[Time24]],Code5)","v":0},{"$f":"COUNTIF(DailySchedule[[#This Row],[Time1]:[Time24]],Code6)","v":0},{"$f":"SUMPRODUCT( --(DailySchedule[[#This Row],[Time1]:[Time24]]=TRANSPOSE(CHOOSE({1,2,3},Code4,Code5,Code6))) )","v":0}]
[null,"2013-03-09",{"$nulls":25},{"$f":"COUNTIF(DailySchedule[[#This Row],[Time1]:[Time24]],Code1)","v":0},{"$f":"COUNTIF(DailySchedule[[#This Row],[Time1]:[Time24]],Code2)","v":0},{"$f":"COUNTIF(DailySchedule[[#This Row],[Time1]:[Time24]],Code3)","v":0},{"$f":"COUNTIF(DailySchedule[[#This Row],[Time1]:[Time24]],Code7)","v":0},{"$f":"COUNTIF(DailySchedule[[#This Row],[Time1]:[Time24]],Code8)","v":0},{"$f":"COUNTIF(DailySchedule[[#This Row],[Time1]:[Time24]],Code4)","v":0},{"$f":"COUNTIF(DailySchedule[[#This Row],[Time1]:[Time24]],Code5)","v":0},{"$f":"COUNTIF(DailySchedule[[#This Row],[Time1]:[Time24]],Code6)","v":0},{"$f":"SUMPRODUCT( --(DailySchedule[[#This Row],[Time1]:[Time24]]=TRANSPOSE(CHOOSE({1,2,3},Code4,Code5,Code6))) )","v":0}]
[null,"2013-03-10",{"$nulls":25},{"$f":"COUNTIF(DailySchedule[[#This Row],[Time1]:[Time24]],Code1)","v":0},{"$f":"COUNTIF(DailySchedule[[#This Row],[Time1]:[Time24]],Code2)","v":0},{"$f":"COUNTIF(DailySchedule[[#This Row],[Time1]:[Time24]],Code3)","v":0},{"$f":"COUNTIF(DailySchedule[[#This Row],[Time1]:[Time24]],Code7)","v":0},{"$f":"COUNTIF(DailySchedule[[#This Row],[Time1]:[Time24]],Code8)","v":0},{"$f":"COUNTIF(DailySchedule[[#This Row],[Time1]:[Time24]],Code4)","v":0},{"$f":"COUNTIF(DailySchedule[[#This Row],[Time1]:[Time24]],Code5)","v":0},{"$f":"COUNTIF(DailySchedule[[#This Row],[Time1]:[Time24]],Code6)","v":0},{"$f":"SUMPRODUCT( --(DailySchedule[[#This Row],[Time1]:[Time24]]=TRANSPOSE(CHOOSE({1,2,3},Code4,Code5,Code6))) )","v":0}]
[null,"2013-03-11",{"$nulls":25},{"$f":"COUNTIF(DailySchedule[[#This Row],[Time1]:[Time24]],Code1)","v":0},{"$f":"COUNTIF(DailySchedule[[#This Row],[Time1]:[Time24]],Code2)","v":0},{"$f":"COUNTIF(DailySchedule[[#This Row],[Time1]:[Time24]],Code3)","v":0},{"$f":"COUNTIF(DailySchedule[[#This Row],[Time1]:[Time24]],Code7)","v":0},{"$f":"COUNTIF(DailySchedule[[#This Row],[Time1]:[Time24]],Code8)","v":0},{"$f":"COUNTIF(DailySchedule[[#This Row],[Time1]:[Time24]],Code4)","v":0},{"$f":"COUNTIF(DailySchedule[[#This Row],[Time1]:[Time24]],Code5)","v":0},{"$f":"COUNTIF(DailySchedule[[#This Row],[Time1]:[Time24]],Code6)","v":0},{"$f":"SUMPRODUCT( --(DailySchedule[[#This Row],[Time1]:[Time24]]=TRANSPOSE(CHOOSE({1,2,3},Code4,Code5,Code6))) )","v":0}]
[null,"2013-03-12",{"$nulls":25},{"$f":"COUNTIF(DailySchedule[[#This Row],[Time1]:[Time24]],Code1)","v":0},{"$f":"COUNTIF(DailySchedule[[#This Row],[Time1]:[Time24]],Code2)","v":0},{"$f":"COUNTIF(DailySchedule[[#This Row],[Time1]:[Time24]],Code3)","v":0},{"$f":"COUNTIF(DailySchedule[[#This Row],[Time1]:[Time24]],Code7)","v":0},{"$f":"COUNTIF(DailySchedule[[#This Row],[Time1]:[Time24]],Code8)","v":0},{"$f":"COUNTIF(DailySchedule[[#This Row],[Time1]:[Time24]],Code4)","v":0},{"$f":"COUNTIF(DailySchedule[[#This Row],[Time1]:[Time24]],Code5)","v":0},{"$f":"COUNTIF(DailySchedule[[#This Row],[Time1]:[Time24]],Code6)","v":0},{"$f":"SUMPRODUCT( --(DailySchedule[[#This Row],[Time1]:[Time24]]=TRANSPOSE(CHOOSE({1,2,3},Code4,Code5,Code6))) )","v":0}]
[null,"2013-03-13",{"$nulls":25},{"$f":"COUNTIF(DailySchedule[[#This Row],[Time1]:[Time24]],Code1)","v":0},{"$f":"COUNTIF(DailySchedule[[#This Row],[Time1]:[Time24]],Code2)","v":0},{"$f":"COUNTIF(DailySchedule[[#This Row],[Time1]:[Time24]],Code3)","v":0},{"$f":"COUNTIF(DailySchedule[[#This Row],[Time1]:[Time24]],Code7)","v":0},{"$f":"COUNTIF(DailySchedule[[#This Row],[Time1]:[Time24]],Code8)","v":0},{"$f":"COUNTIF(DailySchedule[[#This Row],[Time1]:[Time24]],Code4)","v":0},{"$f":"COUNTIF(DailySchedule[[#This Row],[Time1]:[Time24]],Code5)","v":0},{"$f":"COUNTIF(DailySchedule[[#This Row],[Time1]:[Time24]],Code6)","v":0},{"$f":"SUMPRODUCT( --(DailySchedule[[#This Row],[Time1]:[Time24]]=TRANSPOSE(CHOOSE({1,2,3},Code4,Code5,Code6))) )","v":0}]
[null,"2013-03-14",{"$nulls":25},{"$f":"COUNTIF(DailySchedule[[#This Row],[Time1]:[Time24]],Code1)","v":0},{"$f":"COUNTIF(DailySchedule[[#This Row],[Time1]:[Time24]],Code2)","v":0},{"$f":"COUNTIF(DailySchedule[[#This Row],[Time1]:[Time24]],Code3)","v":0},{"$f":"COUNTIF(DailySchedule[[#This Row],[Time1]:[Time24]],Code7)","v":0},{"$f":"COUNTIF(DailySchedule[[#This Row],[Time1]:[Time24]],Code8)","v":0},{"$f":"COUNTIF(DailySchedule[[#This Row],[Time1]:[Time24]],Code4)","v":0},{"$f":"COUNTIF(DailySchedule[[#This Row],[Time1]:[Time24]],Code5)","v":0},{"$f":"COUNTIF(DailySchedule[[#This Row],[Time1]:[Time24]],Code6)","v":0},{"$f":"SUMPRODUCT( --(DailySchedule[[#This Row],[Time1]:[Time24]]=TRANSPOSE(CHOOSE({1,2,3},Code4,Code5,Code6))) )","v":0}]
[null,"2013-03-15",{"$nulls":25},{"$f":"COUNTIF(DailySchedule[[#This Row],[Time1]:[Time24]],Code1)","v":0},{"$f":"COUNTIF(DailySchedule[[#This Row],[Time1]:[Time24]],Code2)","v":0},{"$f":"COUNTIF(DailySchedule[[#This Row],[Time1]:[Time24]],Code3)","v":0},{"$f":"COUNTIF(DailySchedule[[#This Row],[Time1]:[Time24]],Code7)","v":0},{"$f":"COUNTIF(DailySchedule[[#This Row],[Time1]:[Time24]],Code8)","v":0},{"$f":"COUNTIF(DailySchedule[[#This Row],[Time1]:[Time24]],Code4)","v":0},{"$f":"COUNTIF(DailySchedule[[#This Row],[Time1]:[Time24]],Code5)","v":0},{"$f":"COUNTIF(DailySchedule[[#This Row],[Time1]:[Time24]],Code6)","v":0},{"$f":"SUMPRODUCT( --(DailySchedule[[#This Row],[Time1]:[Time24]]=TRANSPOSE(CHOOSE({1,2,3},Code4,Code5,Code6))) )","v":0}]
[null,"2013-03-16",{"$nulls":25},{"$f":"COUNTIF(DailySchedule[[#This Row],[Time1]:[Time24]],Code1)","v":0},{"$f":"COUNTIF(DailySchedule[[#This Row],[Time1]:[Time24]],Code2)","v":0},{"$f":"COUNTIF(DailySchedule[[#This Row],[Time1]:[Time24]],Code3)","v":0},{"$f":"COUNTIF(DailySchedule[[#This Row],[Time1]:[Time24]],Code7)","v":0},{"$f":"COUNTIF(DailySchedule[[#This Row],[Time1]:[Time24]],Code8)","v":0},{"$f":"COUNTIF(DailySchedule[[#This Row],[Time1]:[Time24]],Code4)","v":0},{"$f":"COUNTIF(DailySchedule[[#This Row],[Time1]:[Time24]],Code5)","v":0},{"$f":"COUNTIF(DailySchedule[[#This Row],[Time1]:[Time24]],Code6)","v":0},{"$f":"SUMPRODUCT( --(DailySchedule[[#This Row],[Time1]:[Time24]]=TRANSPOSE(CHOOSE({1,2,3},Code4,Code5,Code6))) )","v":0}]
[null,"2013-03-17",{"$nulls":25},{"$f":"COUNTIF(DailySchedule[[#This Row],[Time1]:[Time24]],Code1)","v":0},{"$f":"COUNTIF(DailySchedule[[#This Row],[Time1]:[Time24]],Code2)","v":0},{"$f":"COUNTIF(DailySchedule[[#This Row],[Time1]:[Time24]],Code3)","v":0},{"$f":"COUNTIF(DailySchedule[[#This Row],[Time1]:[Time24]],Code7)","v":0},{"$f":"COUNTIF(DailySchedule[[#This Row],[Time1]:[Time24]],Code8)","v":0},{"$f":"COUNTIF(DailySchedule[[#This Row],[Time1]:[Time24]],Code4)","v":0},{"$f":"COUNTIF(DailySchedule[[#This Row],[Time1]:[Time24]],Code5)","v":0},{"$f":"COUNTIF(DailySchedule[[#This Row],[Time1]:[Time24]],Code6)","v":0},{"$f":"SUMPRODUCT( --(DailySchedule[[#This Row],[Time1]:[Time24]]=TRANSPOSE(CHOOSE({1,2,3},Code4,Code5,Code6))) )","v":0}]
[null,"2013-03-18",{"$nulls":25},{"$f":"COUNTIF(DailySchedule[[#This Row],[Time1]:[Time24]],Code1)","v":0},{"$f":"COUNTIF(DailySchedule[[#This Row],[Time1]:[Time24]],Code2)","v":0},{"$f":"COUNTIF(DailySchedule[[#This Row],[Time1]:[Time24]],Code3)","v":0},{"$f":"COUNTIF(DailySchedule[[#This Row],[Time1]:[Time24]],Code7)","v":0},{"$f":"COUNTIF(DailySchedule[[#This Row],[Time1]:[Time24]],Code8)","v":0},{"$f":"COUNTIF(DailySchedule[[#This Row],[Time1]:[Time24]],Code4)","v":0},{"$f":"COUNTIF(DailySchedule[[#This Row],[Time1]:[Time24]],Code5)","v":0},{"$f":"COUNTIF(DailySchedule[[#This Row],[Time1]:[Time24]],Code6)","v":0},{"$f":"SUMPRODUCT( --(DailySchedule[[#This Row],[Time1]:[Time24]]=TRANSPOSE(CHOOSE({1,2,3},Code4,Code5,Code6))) )","v":0}]
[null,"2013-03-19",{"$nulls":25},{"$f":"COUNTIF(DailySchedule[[#This Row],[Time1]:[Time24]],Code1)","v":0},{"$f":"COUNTIF(DailySchedule[[#This Row],[Time1]:[Time24]],Code2)","v":0},{"$f":"COUNTIF(DailySchedule[[#This Row],[Time1]:[Time24]],Code3)","v":0},{"$f":"COUNTIF(DailySchedule[[#This Row],[Time1]:[Time24]],Code7)","v":0},{"$f":"COUNTIF(DailySchedule[[#This Row],[Time1]:[Time24]],Code8)","v":0},{"$f":"COUNTIF(DailySchedule[[#This Row],[Time1]:[Time24]],Code4)","v":0},{"$f":"COUNTIF(DailySchedule[[#This Row],[Time1]:[Time24]],Code5)","v":0},{"$f":"COUNTIF(DailySchedule[[#This Row],[Time1]:[Time24]],Code6)","v":0},{"$f":"SUMPRODUCT( --(DailySchedule[[#This Row],[Time1]:[Time24]]=TRANSPOSE(CHOOSE({1,2,3},Code4,Code5,Code6))) )","v":0}]
[null,"2013-03-20",{"$nulls":25},{"$f":"COUNTIF(DailySchedule[[#This Row],[Time1]:[Time24]],Code1)","v":0},{"$f":"COUNTIF(DailySchedule[[#This Row],[Time1]:[Time24]],Code2)","v":0},{"$f":"COUNTIF(DailySchedule[[#This Row],[Time1]:[Time24]],Code3)","v":0},{"$f":"COUNTIF(DailySchedule[[#This Row],[Time1]:[Time24]],Code7)","v":0},{"$f":"COUNTIF(DailySchedule[[#This Row],[Time1]:[Time24]],Code8)","v":0},{"$f":"COUNTIF(DailySchedule[[#This Row],[Time1]:[Time24]],Code4)","v":0},{"$f":"COUNTIF(DailySchedule[[#This Row],[Time1]:[Time24]],Code5)","v":0},{"$f":"COUNTIF(DailySchedule[[#This Row],[Time1]:[Time24]],Code6)","v":0},{"$f":"SUMPRODUCT( --(DailySchedule[[#This Row],[Time1]:[Time24]]=TRANSPOSE(CHOOSE({1,2,3},Code4,Code5,Code6))) )","v":0}]
[null,"2013-03-21",{"$nulls":25},{"$f":"COUNTIF(DailySchedule[[#This Row],[Time1]:[Time24]],Code1)","v":0},{"$f":"COUNTIF(DailySchedule[[#This Row],[Time1]:[Time24]],Code2)","v":0},{"$f":"COUNTIF(DailySchedule[[#This Row],[Time1]:[Time24]],Code3)","v":0},{"$f":"COUNTIF(DailySchedule[[#This Row],[Time1]:[Time24]],Code7)","v":0},{"$f":"COUNTIF(DailySchedule[[#This Row],[Time1]:[Time24]],Code8)","v":0},{"$f":"COUNTIF(DailySchedule[[#This Row],[Time1]:[Time24]],Code4)","v":0},{"$f":"COUNTIF(DailySchedule[[#This Row],[Time1]:[Time24]],Code5)","v":0},{"$f":"COUNTIF(DailySchedule[[#This Row],[Time1]:[Time24]],Code6)","v":0},{"$f":"SUMPRODUCT( --(DailySchedule[[#This Row],[Time1]:[Time24]]=TRANSPOSE(CHOOSE({1,2,3},Code4,Code5,Code6))) )","v":0}]
[null,"2013-03-22",{"$nulls":25},{"$f":"COUNTIF(DailySchedule[[#This Row],[Time1]:[Time24]],Code1)","v":0},{"$f":"COUNTIF(DailySchedule[[#This Row],[Time1]:[Time24]],Code2)","v":0},{"$f":"COUNTIF(DailySchedule[[#This Row],[Time1]:[Time24]],Code3)","v":0},{"$f":"COUNTIF(DailySchedule[[#This Row],[Time1]:[Time24]],Code7)","v":0},{"$f":"COUNTIF(DailySchedule[[#This Row],[Time1]:[Time24]],Code8)","v":0},{"$f":"COUNTIF(DailySchedule[[#This Row],[Time1]:[Time24]],Code4)","v":0},{"$f":"COUNTIF(DailySchedule[[#This Row],[Time1]:[Time24]],Code5)","v":0},{"$f":"COUNTIF(DailySchedule[[#This Row],[Time1]:[Time24]],Code6)","v":0},{"$f":"SUMPRODUCT( --(DailySchedule[[#This Row],[Time1]:[Time24]]=TRANSPOSE(CHOOSE({1,2,3},Code4,Code5,Code6))) )","v":0}]
[null,"2013-03-23",{"$nulls":25},{"$f":"COUNTIF(DailySchedule[[#This Row],[Time1]:[Time24]],Code1)","v":0},{"$f":"COUNTIF(DailySchedule[[#This Row],[Time1]:[Time24]],Code2)","v":0},{"$f":"COUNTIF(DailySchedule[[#This Row],[Time1]:[Time24]],Code3)","v":0},{"$f":"COUNTIF(DailySchedule[[#This Row],[Time1]:[Time24]],Code7)","v":0},{"$f":"COUNTIF(DailySchedule[[#This Row],[Time1]:[Time24]],Code8)","v":0},{"$f":"COUNTIF(DailySchedule[[#This Row],[Time1]:[Time24]],Code4)","v":0},{"$f":"COUNTIF(DailySchedule[[#This Row],[Time1]:[Time24]],Code5)","v":0},{"$f":"COUNTIF(DailySchedule[[#This Row],[Time1]:[Time24]],Code6)","v":0},{"$f":"SUMPRODUCT( --(DailySchedule[[#This Row],[Time1]:[Time24]]=TRANSPOSE(CHOOSE({1,2,3},Code4,Code5,Code6))) )","v":0}]
[null,"2013-03-24",{"$nulls":25},{"$f":"COUNTIF(DailySchedule[[#This Row],[Time1]:[Time24]],Code1)","v":0},{"$f":"COUNTIF(DailySchedule[[#This Row],[Time1]:[Time24]],Code2)","v":0},{"$f":"COUNTIF(DailySchedule[[#This Row],[Time1]:[Time24]],Code3)","v":0},{"$f":"COUNTIF(DailySchedule[[#This Row],[Time1]:[Time24]],Code7)","v":0},{"$f":"COUNTIF(DailySchedule[[#This Row],[Time1]:[Time24]],Code8)","v":0},{"$f":"COUNTIF(DailySchedule[[#This Row],[Time1]:[Time24]],Code4)","v":0},{"$f":"COUNTIF(DailySchedule[[#This Row],[Time1]:[Time24]],Code5)","v":0},{"$f":"COUNTIF(DailySchedule[[#This Row],[Time1]:[Time24]],Code6)","v":0},{"$f":"SUMPRODUCT( --(DailySchedule[[#This Row],[Time1]:[Time24]]=TRANSPOSE(CHOOSE({1,2,3},Code4,Code5,Code6))) )","v":0}]
[null,"2013-03-25",{"$nulls":25},{"$f":"COUNTIF(DailySchedule[[#This Row],[Time1]:[Time24]],Code1)","v":0},{"$f":"COUNTIF(DailySchedule[[#This Row],[Time1]:[Time24]],Code2)","v":0},{"$f":"COUNTIF(DailySchedule[[#This Row],[Time1]:[Time24]],Code3)","v":0},{"$f":"COUNTIF(DailySchedule[[#This Row],[Time1]:[Time24]],Code7)","v":0},{"$f":"COUNTIF(DailySchedule[[#This Row],[Time1]:[Time24]],Code8)","v":0},{"$f":"COUNTIF(DailySchedule[[#This Row],[Time1]:[Time24]],Code4)","v":0},{"$f":"COUNTIF(DailySchedule[[#This Row],[Time1]:[Time24]],Code5)","v":0},{"$f":"COUNTIF(DailySchedule[[#This Row],[Time1]:[Time24]],Code6)","v":0},{"$f":"SUMPRODUCT( --(DailySchedule[[#This Row],[Time1]:[Time24]]=TRANSPOSE(CHOOSE({1,2,3},Code4,Code5,Code6))) )","v":0}]
[null,"2013-03-26",{"$nulls":25},{"$f":"COUNTIF(DailySchedule[[#This Row],[Time1]:[Time24]],Code1)","v":0},{"$f":"COUNTIF(DailySchedule[[#This Row],[Time1]:[Time24]],Code2)","v":0},{"$f":"COUNTIF(DailySchedule[[#This Row],[Time1]:[Time24]],Code3)","v":0},{"$f":"COUNTIF(DailySchedule[[#This Row],[Time1]:[Time24]],Code7)","v":0},{"$f":"COUNTIF(DailySchedule[[#This Row],[Time1]:[Time24]],Code8)","v":0},{"$f":"COUNTIF(DailySchedule[[#This Row],[Time1]:[Time24]],Code4)","v":0},{"$f":"COUNTIF(DailySchedule[[#This Row],[Time1]:[Time24]],Code5)","v":0},{"$f":"COUNTIF(DailySchedule[[#This Row],[Time1]:[Time24]],Code6)","v":0},{"$f":"SUMPRODUCT( --(DailySchedule[[#This Row],[Time1]:[Time24]]=TRANSPOSE(CHOOSE({1,2,3},Code4,Code5,Code6))) )","v":0}]